bitfinex/quotes_SOLUSD_20241107
["timestamp","ask_amount","ask_price","bid_price","bid_amount"]
[1730964621005,0.12549,188.24,188.19,7.89415808]
[1730964621209,5.54397066,188.26,188.21,7.89415808]
[1730964621517,5.54397066,188.26,188.22,7.89415808]
[1730964621985,0.12549,188.25,188.22,7.89415808]
[1730964622385,5.54397066,188.26,188.24,7.89415808]
[1730964622600,0.12549,188.29,188.24,7.89415808]
[1730964622803,8.01964808,188.29,188.23,7.89415808]
[1730964623185,0.12549,188.27,188.22,7.89415808]
[1730964623800,7.89415808,188.28,188.22,7.89415808]
[1730964624283,8.01964808,188.27,188.18,15.9975]
[1730964624600,0.12549,188.25,188.2,7.89415808]
[1730964625634,23.776884,188.31,188.22,20.0]
[1730964625917,7.89415808,188.28,188.22,27.89415808]
[1730964626082,8.01964808,188.27,188.22,20.0]
[1730964626283,0.12549,188.27,188.22,20.0]
[1730964627119,0.12549,188.26,188.22,20.0]
[1730964627932,0.12549,188.27,188.22,20.0]
[1730964628510,8.01964808,188.26,188.22,20.0]
[1730964628816,0.12549,188.23,188.18,15.9975]
[1730964629032,0.12549,188.24,188.19,7.89415808]
[1730964630207,16.1582,188.32,188.22,20.0]
[1730964630532,7.89415808,188.27,188.22,20.0]
[1730964630738,0.12549,188.26,188.22,20.0]
[1730964631118,0.12549,188.26,188.21,7.89415808]
[1730964632215,0.12549,188.26,188.18,15.9975]
[1730964632216,0.12549,188.31,188.22,7.89415808]
[1730964632438,0.12549,188.27,188.22,7.89415808]
[1730964632937,0.12549,188.31,188.22,7.89415808]
[1730964633107,0.12549,188.27,188.22,7.89415808]
[1730964633710,0.12549,188.27,188.23,20.0]
[1730964635314,0.12549,188.28,188.23,20.0]
[1730964635509,0.12549,188.28,188.23,7.89415808]
[1730964635721,0.12549,188.28,188.24,20.0]
[1730964636337,7.89415808,188.3,188.24,7.89415808]
[1730964636646,7.89415808,188.31,188.26,7.89415808]
[1730964637017,0.5782066,188.34,188.27,20.0]
[1730964637230,0.5782066,188.34,188.29,7.89415808]
[1730964637738,0.5782066,188.34,188.28,7.89415808]
[1730964637739,0.12549,188.33,188.28,7.89415808]
[1730964638337,8.47236468,188.34,188.27,7.89415808]
[1730964638557,8.47236468,188.34,188.28,20.0]
[1730964639413,0.12549,188.33,188.28,27.89415808]
[1730964640414,0.12549,188.33,188.27,7.89415808]
[1730964640642,0.12549,188.33,188.28,20.0]
[1730964641845,0.12549,188.31,188.26,20.0]
[1730964642139,0.12549,188.31,188.26,27.89415808]
[1730964645143,0.12549,188.3,188.2,23.1014]
[1730964645343,0.12549,188.28,188.23,7.89415808]
[1730964646222,0.12549,188.28,188.2,23.1014]
[1730964646558,0.12549,188.27,188.22,7.89415808]
[1730964647124,0.12549,188.27,188.23,20.0]
[1730964647448,8.01964808,188.29,188.23,7.89415808]
[1730964647657,0.12549,188.29,188.21,20.0]
[1730964647952,0.12549,188.29,188.24,7.89415808]
[1730964648130,0.5782066,188.34,188.21,20.0]
[1730964648322,8.47236468,188.34,188.28,7.89415808]
[1730964648649,0.12549,188.33,188.28,7.89415808]
[1730964652543,0.12549,188.33,188.21,20.0]
[1730964652842,8.01964808,188.33,188.28,20.0]
[1730964653019,0.12549,188.3,188.2,23.1014]
[1730964653218,8.01964808,188.3,188.24,7.89415808]
[1730964653442,0.12549,188.28,188.2,23.1014]
[1730964653645,0.12549,188.28,188.23,7.89415808]
[1730964655232,7.89415808,188.3,188.24,7.89415808]
[1730964655430,0.12549,188.29,188.24,7.89415808]
[1730964655628,0.12549,188.29,188.2,23.1014]
[1730964655629,0.12549,188.29,188.25,7.89415808]
[1730964656224,8.01964808,188.3,188.24,7.89415808]
[1730964657859,0.5782066,188.34,188.26,27.89415808]
[1730964658033,7.89415808,188.33,188.27,7.89415808]
[1730964658647,7.89415808,188.32,188.26,7.89415808]
[1730964658847,0.12549,188.31,188.26,7.89415808]
[1730964659045,7.89415808,188.32,188.26,7.89415808]
[1730964659735,0.12549,188.31,188.26,7.89415808]
[1730964660730,0.12549,188.3,188.24,7.89415808]
[1730964662554,0.12549,188.29,188.24,7.89415808]
[1730964663438,0.12549,188.3,188.24,7.89415808]
[1730964664127,0.12549,188.29,188.21,20.0]
[1730964664326,0.12549,188.29,188.24,7.89415808]
[1730964665775,0.12549,188.33,188.24,7.89415808]
[1730964665973,0.12549,188.3,188.24,7.89415808]
[1730964666168,0.12549,188.3,188.25,7.89415808]
[1730964666566,0.12549,188.3,188.21,20.0]
[1730964666881,0.12549,188.3,188.25,20.0]
[1730964668375,0.12549,188.3,188.25,7.89415808]
[1730964672575,0.5782066,188.34,188.26,27.89415808]
[1730964672758,0.5782066,188.34,188.27,7.89415808]
[1730964672759,7.89415808,188.33,188.27,7.89415808]
[1730964673169,0.12549,188.32,188.26,27.89415808]
[1730964673375,0.12549,188.32,188.26,7.89415808]
[1730964673884,0.12549,188.31,188.26,7.89415808]
[1730964675575,8.01964808,188.33,188.27,7.89415808]
[1730964677785,8.01964808,188.33,188.23,1.34056097]
[1730964677968,8.01964808,188.33,188.27,7.89415808]
[1730964679681,0.12549,188.33,188.28,7.89415808]
[1730964680378,0.5782066,188.34,188.29,7.89415808]
[1730964681583,0.12549,188.33,188.28,27.89415808]
[1730964682786,8.01964808,188.33,188.23,36.2397]
[1730964682988,8.01964808,188.33,188.28,7.89415808]
[1730964683868,8.01964808,188.33,188.23,36.1397]
[1730964684173,8.01964808,188.33,188.28,20.0]
[1730964684582,0.12549,188.33,188.24,20.0]
[1730964684783,0.12549,188.33,188.28,7.89415808]
[1730964684966,0.12549,188.33,188.24,20.0]
[1730964685165,0.12549,188.33,188.28,7.89415808]
[1730964685367,0.12549,188.33,188.24,20.0]
[1730964685568,0.5782066,188.34,188.29,7.89415808]
[1730964687566,0.5782066,188.34,188.3,7.89415808]
[1730964687763,0.5782066,188.34,188.31,27.89415808]
[1730964688591,0.5782066,188.34,188.32,7.89415808]
[1730964688984,0.5782066,188.34,188.33,7.89415808]
[1730964689281,0.5782066,188.34,188.32,7.89415808]
[1730964689967,0.5782066,188.34,188.28,20.0]
[1730964690164,0.5782066,188.34,188.32,7.89415808]
[1730964690765,0.5782066,188.34,188.33,27.89415808]
[1730964693380,0.5782066,188.34,188.31,20.2]
[1730964693707,0.5782066,188.34,188.33,27.89415808]
[1730964693991,0.5782066,188.34,188.33,51.67104208]
[1730964694801,0.5782066,188.34,188.33,51.77104208]
[1730964695999,0.12549,188.42,188.34,43.776884]
[1730964696306,7.89415808,188.41,188.36,20.0]
[1730964697502,7.89415808,188.43,188.37,7.89415808]
[1730964697703,7.89415808,188.41,188.34,20.0]
[1730964697891,7.89415808,188.41,188.37,20.0]
[1730964699410,7.89415808,188.41,188.35,7.89415808]
[1730964699582,7.89415808,188.4,188.34,27.89415808]
[1730964700722,0.12549,188.38,188.31,20.0]
[1730964700894,0.12549,188.38,188.33,27.89415808]
[1730964701096,0.12549,188.38,188.33,20.0]
[1730964701282,0.12549,188.38,188.34,7.89415808]
[1730964701602,0.12549,188.38,188.35,20.0]
[1730964702118,7.89415808,188.41,188.31,20.0]
[1730964702327,7.89415808,188.4,188.34,7.89415808]
[1730964702711,0.12549,188.39,188.35,20.0]
[1730964703119,16.3233,188.46,188.35,27.89415808]
[1730964703414,7.89415808,188.41,188.35,27.89415808]
[1730964703593,0.12549,188.4,188.35,27.89415808]
[1730964704423,7.89415808,188.4,188.35,20.0]
[1730964704932,7.89415808,188.39,188.35,20.0]
[1730964705222,16.3233,188.46,188.37,7.89415808]
[1730964705429,7.89415808,188.44,188.38,7.89415808]
[1730964705597,7.89415808,188.43,188.38,20.0]
[1730964705925,7.89415808,188.43,188.36,7.89415808]
[1730964706112,7.89415808,188.43,188.37,27.89415808]
[1730964707801,7.89415808,188.42,188.34,20.0]
[1730964708114,0.12549,188.41,188.37,20.0]
[1730964709299,7.89415808,188.42,188.37,20.0]
[1730964709522,7.89415808,188.43,188.37,20.0]
[1730964710123,0.12549,188.42,188.38,20.0]
[1730964710309,7.89415808,188.44,188.38,20.0]
[1730964711827,7.89415808,188.43,188.38,20.0]
[1730964712006,7.89415808,188.44,188.38,20.0]
[1730964712930,7.89415808,188.44,188.38,7.89415808]
[1730964714818,7.89415808,188.44,188.39,20.0]
[1730964715015,0.12549,188.45,188.39,20.0]
[1730964715223,7.89415808,188.44,188.39,20.0]
[1730964715526,7.89415808,188.44,188.38,7.89415808]
[1730964715737,7.89415808,188.44,188.39,20.0]
[1730964717131,6.89415808,188.44,188.39,20.0]
[1730964717424,0.12549,188.45,188.39,27.89415808]
[1730964717628,8.01964808,188.45,188.4,20.0]
[1730964718309,7.89415808,188.44,188.39,20.0]
[1730964719132,7.89415808,188.44,188.34,20.0]
[1730964719309,7.89415808,188.44,188.39,20.0]
[1730964720113,7.89415808,188.44,188.38,7.89415808]
[1730964720752,7.89415808,188.44,188.39,20.0]
[1730964721308,8.01964808,188.43,188.38,20.0]
[1730964721508,7.89415808,188.42,188.37,20.0]
[1730964722808,0.12549,188.39,188.34,20.0]
[1730964723008,0.12549,188.39,188.34,27.89415808]
[1730964723539,0.12549,188.37,188.3,15.8963]
[1730964723832,15.44879,188.46,188.31,7.89415808]
[1730964724009,15.44879,188.46,188.33,7.89415808]
[1730964724010,7.89415808,188.39,188.33,7.89415808]
[1730964724332,7.89415808,188.4,188.34,7.89415808]
[1730964726034,7.89415808,188.39,188.33,7.89415808]
[1730964726342,7.89415808,188.4,188.34,7.89415808]
[1730964727045,7.89415808,188.39,188.33,7.89415808]
[1730964727230,7.89415808,188.4,188.34,7.89415808]
[1730964727633,7.89415808,188.4,188.32,20.0]
[1730964727824,7.89415808,188.41,188.35,7.89415808]
[1730964729228,5.6454003,188.45,188.38,7.89415808]
[1730964729434,15.44879,188.46,188.39,20.0]
[1730964729743,7.89415808,188.44,188.39,20.0]
[1730964729941,7.89415808,188.43,188.37,7.89415808]
[1730964730150,7.89415808,188.43,188.38,20.0]
[1730964730446,7.89415808,188.41,188.36,20.0]
[1730964730822,0.12549,188.41,188.36,27.89415808]
[1730964732142,0.12549,188.44,188.36,27.89415808]
[1730964732343,0.12549,188.42,188.36,27.89415808]
[1730964732726,8.01964808,188.42,188.36,27.89415808]
[1730964733031,0.12549,188.4,188.35,7.89415808]
[1730964733247,8.01964808,188.4,188.34,7.89415808]
[1730964733845,0.12549,188.4,188.35,7.89415808]
[1730964735844,0.12549,188.41,188.36,7.89415808]
[1730964737754,0.12549,188.41,188.35,7.89415808]
[1730964737953,7.89415808,188.41,188.35,7.89415808]
[1730964740146,7.89415808,188.41,188.32,20.0]
[1730964740361,7.89415808,188.41,188.35,7.89415808]
[1730964740735,0.12549,188.41,188.36,7.89415808]
[1730964741153,22.5082,188.45,188.37,7.89415808]
[1730964741357,7.89415808,188.44,188.38,7.89415808]
[1730964741664,0.12549,188.43,188.38,7.89415808]
[1730964741842,8.01964808,188.43,188.37,7.89415808]
[1730964743139,8.01964808,188.43,188.32,20.1]
[1730964743334,0.12549,188.41,188.37,20.0]
[1730964744334,0.12549,188.42,188.37,27.89415808]
[1730964744555,7.89415808,188.44,188.37,27.89415808]
[1730964745060,7.89415808,188.42,188.36,7.89415808]
[1730964745238,7.89415808,188.42,188.37,20.0]
[1730964746035,7.89415808,188.41,188.32,20.0]
[1730964746258,7.89415808,188.41,188.35,20.0]
[1730964746459,7.89415808,188.4,188.35,20.0]
[1730964746844,6.41889,188.44,188.35,20.0]
[1730964746845,7.89415808,188.41,188.35,20.0]
[1730964748360,0.12549,188.37,188.34,20.0]
[1730964748551,0.12549,188.37,188.3,7.89415808]
[1730964748552,7.89415808,188.36,188.3,7.89415808]
[1730964749064,7.89415808,188.35,188.29,7.89415808]
[1730964749361,7.89415808,188.35,188.27,15.1495]
[1730964749362,0.12549,188.35,188.3,7.89415808]
[1730964752062,0.12549,188.35,188.28,20.0]
[1730964752247,0.12549,188.34,188.28,20.0]
[1730964752640,0.12549,188.34,188.3,7.89415808]
[1730964752836,0.12549,188.35,188.3,7.89415808]
[1730964753747,0.12549,188.38,188.3,7.89415808]
[1730964753966,0.12549,188.35,188.3,7.89415808]
[1730964754659,0.12549,188.34,188.3,7.89415808]
[1730964756455,7.89415808,188.33,188.28,20.0]
[1730964756643,7.89415808,188.32,188.28,20.0]
[1730964756848,7.89415808,188.32,188.27,20.0]
[1730964759553,7.89415808,188.32,188.27,7.89415808]
[1730964759753,7.89415808,188.32,188.26,7.89415808]
[1730964759959,7.89415808,188.32,188.27,20.0]
[1730964760553,0.12549,188.32,188.27,27.89415808]
[1730964761461,0.12549,188.33,188.28,7.89415808]
[1730964764571,7.89415808,188.35,188.29,7.89415808]
[1730964764776,7.89415808,188.35,188.24,21.33417136]
[1730964764777,0.12549,188.34,188.3,7.89415808]
[1730964765276,6.2119,188.38,188.31,7.89415808]
[1730964765277,7.89415808,188.37,188.31,7.89415808]
[1730964766172,0.12549,188.36,188.31,7.89415808]
[1730964770157,8.01964808,188.35,188.29,7.89415808]
[1730964770357,8.01964808,188.35,188.3,20.0]
[1730964770979,7.89415808,188.38,188.32,7.89415808]
[1730964771354,0.12549,188.37,188.32,7.89415808]
[1730964771788,7.89415808,188.36,188.32,20.0]
[1730964771956,7.89415808,188.36,188.26,20.0]
[1730964771957,7.89415808,188.35,188.26,20.0]
[1730964772156,7.89415808,188.34,188.28,7.89415808]
[1730964772357,7.89415808,188.34,188.29,20.0]
[1730964773381,8.01964808,188.33,188.24,1.33417136]
[1730964773679,0.12549,188.32,188.27,7.89415808]
[1730964774779,0.12549,188.32,188.28,20.0]
[1730964776287,0.12549,188.38,188.28,20.0]
[1730964776478,0.12549,188.33,188.28,27.89415808]
[1730964777563,0.12549,188.33,188.29,7.89415808]
[1730964779269,0.12549,188.33,188.28,7.89415808]
[1730964780564,0.12549,188.32,188.27,7.89415808]
[1730964780769,0.12549,188.32,188.28,20.0]
[1730964780968,7.89415808,188.31,188.23,16.2146]
[1730964781192,8.01964808,188.3,188.24,7.89415808]
[1730964781378,0.12549,188.3,188.25,7.89415808]
[1730964781572,0.12549,188.3,188.23,16.2146]
[1730964781787,0.12549,188.3,188.25,7.89415808]
[1730964782573,0.12549,188.3,188.26,20.0]
[1730964783997,6.0887,188.37,188.26,27.89415808]
[1730964784180,6.0887,188.37,188.29,7.89415808]
[1730964784380,7.89415808,188.36,188.3,7.89415808]
[1730964784578,0.12549,188.35,188.3,7.89415808]
[1730964785110,0.12549,188.34,188.3,20.0]
[1730964786500,0.12549,188.34,188.28,7.89415808]
[1730964786671,7.89415808,188.34,188.29,20.0]
[1730964787073,7.89415808,188.35,188.3,20.0]
[1730964787795,0.12549,188.34,188.28,7.89415808]
[1730964787975,8.01964808,188.34,188.28,7.89415808]
[1730964790502,0.12549,188.34,188.28,7.89415808]
[1730964790807,8.01964808,188.34,188.23,16.2146]
[1730964790986,8.01964808,188.34,188.28,7.89415808]
[1730964794595,8.01964808,188.34,188.24,20.0]
[1730964794777,8.01964808,188.34,188.28,20.0]
[1730964794978,8.01964808,188.34,188.28,7.89415808]
[1730964795907,7.89415808,188.3,188.23,16.2146]
[1730964796209,7.89415808,188.3,188.24,7.89415808]
[1730964797306,0.12549,188.3,188.26,20.0]
[1730964800318,0.12549,188.3,188.25,7.89415808]
[1730964800517,0.12549,188.29,188.25,7.89415808]
[1730964800810,0.12549,188.27,188.24,20.0]
[1730964801186,0.12549,188.27,188.23,20.0]
[1730964801404,8.01964808,188.27,188.19,27.11875235]
[1730964801586,8.01964808,188.26,188.2,7.89415808]
[1730964801785,0.12549,188.24,188.19,34.08965808]
[1730964802986,0.12549,188.24,188.2,20.0]
[1730964803291,0.12549,188.23,188.2,20.0]
[1730964804004,0.12549,188.24,188.2,20.0]
[1730964804305,7.89415808,188.27,188.22,7.89415808]
[1730964804510,0.12549,188.26,188.22,7.89415808]
[1730964804715,15.8025,188.33,188.23,7.89415808]
[1730964804912,7.89415808,188.29,188.23,7.89415808]
[1730964806413,0.12549,188.28,188.23,7.89415808]
[1730964806792,8.01964808,188.28,188.22,7.89415808]
[1730964808114,0.12549,188.28,188.23,7.89415808]
[1730964808492,0.12549,188.28,188.24,7.89415808]
[1730964809005,0.12549,188.29,188.24,7.89415808]
[1730964809210,15.8025,188.33,188.26,7.89415808]
[1730964809393,23.69665808,188.33,188.27,7.89415808]
[1730964809592,0.12549,188.32,188.27,7.89415808]
[1730964812589,5.53268902,188.36,188.28,27.89415808]
[1730964812905,7.89415808,188.35,188.28,27.89415808]
[1730964813113,0.12549,188.34,188.28,27.89415808]
[1730964813612,8.01964808,188.34,188.28,7.89415808]
[1730964814617,0.12549,188.36,188.28,7.89415808]
[1730964814921,0.12549,188.33,188.28,7.89415808]
[1730964816018,15.981,188.37,188.22,20.0]
[1730964816019,7.89415808,188.31,188.22,20.0]
[1730964816197,0.12549,188.29,188.25,20.0]
[1730964816403,0.12549,188.29,188.24,7.89415808]
[1730964816629,0.12549,188.29,188.23,7.89415808]
[1730964817325,0.12549,188.28,188.22,7.89415808]
[1730964817502,8.01964808,188.28,188.22,7.89415808]
[1730964817916,0.12549,188.28,188.23,7.89415808]
[1730964818219,8.01964808,188.28,188.22,7.89415808]
[1730964820222,7.89415808,188.27,188.22,20.0]
[1730964821021,0.12549,188.27,188.23,20.0]
[1730964821521,7.89415808,188.29,188.23,27.89415808]
[1730964822416,0.12549,188.28,188.23,27.89415808]
[1730964822622,0.12549,188.28,188.2,15.351]
[1730964822623,0.12549,188.28,188.24,7.89415808]
[1730964822925,7.89415808,188.31,188.25,7.89415808]
[1730964823096,23.776884,188.36,188.26,7.89415808]
[1730964823301,0.12549,188.31,188.26,7.89415808]
[1730964823503,7.89415808,188.33,188.27,7.89415808]
[1730964824228,7.89415808,188.34,188.28,7.89415808]
[1730964824408,7.89415808,188.35,188.28,7.89415808]
[1730964824722,0.12549,188.34,188.28,7.89415808]
[1730964825093,22.0885,188.37,188.29,7.89415808]
[1730964825326,0.12549,188.34,188.29,7.89415808]
[1730964827126,0.12549,188.33,188.28,7.89415808]
[1730964827326,7.89415808,188.34,188.28,7.89415808]
[1730964827327,22.0885,188.37,188.28,7.89415808]
[1730964827511,7.89415808,188.34,188.28,7.89415808]
[1730964827715,0.12549,188.33,188.28,7.89415808]
[1730964827923,0.12549,188.33,188.22,25.13223721]
[1730964828109,8.01964808,188.33,188.23,20.0]
[1730964828313,0.12549,188.3,188.23,20.0]
[1730964828512,0.12549,188.3,188.25,27.89415808]
[1730964828714,0.12549,188.33,188.28,20.0]
[1730964828904,0.12549,188.33,188.28,27.89415808]
[1730964829526,7.89415808,188.36,188.3,7.89415808]
[1730964829935,0.12549,188.35,188.3,7.89415808]
[1730964833024,0.12549,188.36,188.31,20.0]
[1730964834630,8.01964808,188.36,188.27,20.0]
[1730964834832,8.01964808,188.36,188.3,20.0]
[1730964836630,8.01964808,188.36,188.27,20.0]
[1730964836822,8.01964808,188.36,188.31,20.0]
[1730964837022,8.01964808,188.36,188.27,20.0]
[1730964837426,8.01964808,188.36,188.3,7.89415808]
[1730964837631,8.01964808,188.36,188.31,20.0]
[1730964838216,23.902374,188.4,188.31,20.0]
[1730964838427,0.12549,188.36,188.31,20.0]
[1730964838625,0.12549,188.36,188.27,20.0]
[1730964838942,0.12549,188.36,188.31,20.0]
[1730964840236,7.89415808,188.36,188.31,20.0]
[1730964840441,0.12549,188.35,188.27,20.0]
[1730964840652,0.12549,188.33,188.26,21.3151]
[1730964840942,0.12549,188.33,188.27,7.89415808]
[1730964841911,0.12549,188.33,188.28,20.0]
[1730964842112,8.01964808,188.32,188.26,23.10155808]
[1730964842332,7.89415808,188.3,188.22,15.9729]
[1730964842524,0.12549,188.3,188.24,7.89415808]
[1730964842721,8.01964808,188.3,188.22,15.9729]
[1730964842931,7.89415808,188.29,188.23,7.89415808]
[1730964844743,7.89415808,188.29,188.24,20.0]
[1730964845131,7.89415808,188.29,188.23,20.0]
[1730964845453,7.89415808,188.29,188.24,7.89415808]
[1730964845454,0.12549,188.29,188.24,7.89415808]
[1730964845636,0.12549,188.29,188.23,20.0]
[1730964845839,0.12549,188.29,188.24,7.89415808]
[1730964846462,7.89415808,188.28,188.23,27.89415808]
[1730964847546,0.12549,188.29,188.24,7.89415808]
[1730964852247,0.12549,188.29,188.23,20.0]
[1730964852451,0.12549,188.29,188.24,7.89415808]
[1730964852844,7.89415808,188.29,188.24,7.89415808]
[1730964853240,7.89415808,188.28,188.23,20.0]
[1730964853446,7.89415808,188.28,188.23,27.89415808]
[1730964853750,7.89415808,188.29,188.23,27.89415808]
[1730964854459,23.902374,188.33,188.24,7.89415808]
[1730964854954,0.12549,188.29,188.24,7.89415808]
[1730964855457,0.12549,188.32,188.24,7.89415808]
[1730964855652,0.12549,188.29,188.24,7.89415808]
[1730964857562,0.12549,188.32,188.24,7.89415808]
[1730964857740,0.12549,188.29,188.24,7.89415808]
[1730964859038,7.89415808,188.3,188.24,7.89415808]
[1730964861060,6.0331,188.34,188.27,7.89415808]
[1730964861369,7.89415808,188.33,188.27,7.89415808]
[1730964869567,7.89415808,188.33,188.27,20.0]
[1730964870962,7.89415808,188.33,188.27,7.89415808]
[1730964871172,7.89415808,188.33,188.26,7.89415808]
[1730964871579,7.89415808,188.33,188.27,7.89415808]
[1730964871875,8.01964808,188.34,188.29,20.0]
[1730964873157,7.89415808,188.33,188.27,7.89415808]
[1730964873355,0.12549,188.34,188.28,20.0]
[1730964873664,7.89415808,188.33,188.28,20.0]
[1730964874476,0.12549,188.34,188.28,20.0]
[1730964874777,7.89415808,188.33,188.28,20.0]
[1730964875574,7.89415808,188.33,188.23,20.0]
[1730964875754,7.89415808,188.33,188.27,7.89415808]
[1730964875949,7.89415808,188.31,188.23,20.0]
[1730964876274,0.12549,188.34,188.22,15.9729]
[1730964876275,7.89415808,188.3,188.24,7.89415808]
[1730964876670,8.01964808,188.29,188.22,15.9729]
[1730964876876,7.89415808,188.28,188.22,15.9729]
[1730964877051,7.89415808,188.28,188.22,23.86705808]
[1730964878581,23.902374,188.34,188.24,20.0]
[1730964878877,7.89415808,188.29,188.24,20.0]
[1730964879066,0.12549,188.29,188.25,20.0]
[1730964879468,0.12549,188.29,188.24,7.89415808]
[1730964879682,0.12549,188.29,188.25,20.0]
[1730964880668,0.12549,188.29,188.24,7.89415808]
[1730964881787,8.01964808,188.29,188.23,20.0]
[1730964881956,8.01964808,188.29,188.23,27.89415808]
[1730964882459,7.89415808,188.26,188.17,16.1039]
[1730964882658,0.12549,188.25,188.2,7.89415808]
[1730964883477,0.12549,188.25,188.17,16.1039]
[1730964883682,0.12549,188.25,188.21,7.89415808]
[1730964883892,0.12549,188.25,188.2,20.0]
[1730964884262,0.12549,188.25,188.2,27.89415808]
[1730964884659,0.12549,188.25,188.2,20.0]
[1730964884877,0.12549,188.25,188.2,27.89415808]
[1730964885389,0.12549,188.25,188.21,7.89415808]
[1730964885786,7.89415808,188.26,188.21,7.89415808]
[1730964885984,7.89415808,188.28,188.2,20.0]
[1730964886283,0.12549,188.28,188.23,7.89415808]
[1730964887099,7.89415808,188.3,188.24,7.89415808]
[1730964887277,7.89415808,188.31,188.25,7.89415808]
[1730964887585,8.01964808,188.3,188.24,7.89415808]
[1730964896697,8.01964808,188.31,188.24,7.89415808]
[1730964896884,8.01964808,188.31,188.25,7.89415808]
[1730964898194,0.12549,188.3,188.25,7.89415808]
[1730964899296,0.12549,188.29,188.24,7.89415808]
[1730964900681,0.12549,188.29,188.23,7.89415808]
[1730964900874,0.12549,188.29,188.24,20.0]
[1730964901872,7.89415808,188.28,188.24,20.0]
[1730964902201,7.89415808,188.28,188.23,20.0]
[1730964904802,7.89415808,188.29,188.23,7.89415808]
[1730964905100,7.89415808,188.29,188.24,20.0]
[1730964906270,7.89415808,188.29,188.23,7.89415808]
[1730964906271,7.89415808,188.29,188.2,20.0]
[1730964906478,7.89415808,188.29,188.24,20.0]
[1730964910381,7.89415808,188.29,188.23,20.0]
[1730964910584,7.89415808,188.25,188.19,10.0]
[1730964910778,7.89415808,188.24,188.19,10.0]
[1730964911500,7.89415808,188.21,188.19,10.0]
[1730964912301,0.12549,188.2,188.19,10.0]
[1730964912604,8.01964808,188.2,188.19,10.0]
[1730964927096,15.249,188.22,188.19,10.0]
[1730964927299,5.54460087,188.24,188.19,10.0]
[1730964927605,0.12549,188.21,188.19,10.0]
[1730964928079,0.12549,188.2,188.19,10.0]
[1730964928283,8.01964808,188.2,188.19,10.0]
[1730964934816,7.89415808,188.21,188.19,10.0]
[1730964935183,0.12549,188.2,188.19,10.0]
[1730964940208,8.01964808,188.2,188.19,10.0]
[1730964956793,0.12549,188.2,188.19,10.0]
[1730964957000,8.01964808,188.2,188.19,10.0]
[1730964962008,63.3731644,188.2,188.19,10.0]
[1730964962421,68.6865644,188.2,188.19,10.0]
[1730964964121,68.7865644,188.2,188.19,10.0]
[1730964964730,74.21384473,188.2,188.19,10.0]
[1730964965526,29.42965433,188.2,188.19,10.0]
[1730964965705,37.32381241,188.2,188.19,10.0]
[1730964968933,29.42965433,188.2,188.19,10.0]
[1730964969117,37.32381241,188.2,188.19,10.0]
[1730964969944,13.54692841,188.2,188.19,10.0]
[1730964971342,37.32381241,188.2,188.19,10.0]
[1730964972230,88.90044473,188.2,188.19,10.0]
[1730964972811,89.00044473,188.2,188.19,10.0]
[1730964973427,275.03204473,188.2,188.19,10.0]
[1730964973619,44.002374,188.19,188.04,15.5671]
[1730964973825,7.89415808,188.12,188.07,20.0]
[1730964974023,0.12549,188.12,188.07,27.89415808]
[1730964974537,0.12549,188.12,188.08,7.89415808]
[1730964974718,8.01964808,188.13,188.07,7.89415808]
[1730964974920,0.12549,188.13,188.08,7.89415808]
[1730964976136,0.12549,188.14,188.09,7.89415808]
[1730964976634,43.776884,188.19,188.1,7.89415808]
[1730964976635,7.89415808,188.16,188.1,7.89415808]
[1730964976936,7.89415808,188.17,188.1,7.89415808]
[1730964977112,0.12549,188.16,188.1,7.89415808]
[1730964977916,0.12549,188.15,188.05,20.0]
[1730964978131,0.12549,188.15,188.1,7.89415808]
[1730964979916,23.776884,188.19,188.11,7.89415808]
[1730964980235,5.52728033,188.2,188.13,7.89415808]
[1730964980419,0.12549,188.19,188.13,7.89415808]
[1730964980620,8.01964808,188.19,188.13,7.89415808]
[1730964981118,0.12549,188.17,188.12,7.89415808]
[1730964985634,5.52400259,188.21,188.13,7.89415808]
[1730964985821,7.89415808,188.2,188.13,7.89415808]
[1730964986142,0.12549,188.19,188.13,7.89415808]
[1730964987616,0.12549,188.18,188.13,7.89415808]